bitfinex-derivatives/quotes_SOLF0:USTF0_20251107
["timestamp","ask_amount","ask_price","bid_price","bid_amount"]
[1762509057047,5.8225,154.66,154.64,0.04464136]
[1762509057754,1.96,154.65,154.64,0.04464136]
[1762509058451,5.8225,154.66,154.64,0.04464136]
[1762509058653,0.04703847,154.67,154.64,3.05464136]
[1762509058848,0.04703847,154.67,154.65,4.89487047]
[1762509059048,0.04703847,154.67,154.66,3.01]
[1762509059351,0.04703847,154.67,154.66,4.89487047]
[1762509060145,0.04703847,154.67,154.66,6.19487047]
[1762509060347,5.8205,154.71,154.67,3.01]
[1762509060552,15.40965994,154.73,154.67,3.01]
[1762509060752,5.8199,154.73,154.67,3.01]
[1762509061150,1.96,154.76,154.67,3.01]
[1762509061352,0.04795975,154.73,154.71,3.01]
[1762509065963,7.7803,154.72,154.7,0.04658152]
[1762509066360,11.57377496,154.71,154.7,0.04658152]
[1762509066760,11.57377496,154.71,154.65,3.01]
[1762509066958,84.601481,154.77,154.62,7.50921279]
[1762509066959,1.96,154.69,154.62,10.51921279]
[1762509067160,1.96,154.69,154.62,3.01]
[1762509067668,7.7814,154.69,154.62,3.01]
[1762509067867,0.04414602,154.67,154.64,3.05334841]
[1762509069372,7.82614602,154.67,154.64,0.04334841]
[1762509069568,2.00414602,154.67,154.64,0.04334841]
[1762509069869,5.8224,154.66,154.64,0.04334841]
[1762509070067,5.8224,154.66,154.64,3.05334841]
[1762509070770,5.8224,154.66,154.64,0.04334841]
[1762509072067,9.653526,154.65,154.64,0.04334841]
[1762509073068,2.00414602,154.67,154.64,0.04334841]
[1762509073371,9.66200046,154.66,154.64,0.04334841]
[1762509073567,4.75418197,154.65,154.64,3.05334841]
[1762509073773,0.04414602,154.67,154.64,3.05334841]
[1762509074073,9.66471688,154.66,154.64,3.05334841]
[1762509074273,0.04414602,154.67,154.64,3.05334841]
[1762509075171,9.67239263,154.66,154.64,3.05334841]
[1762509075376,9.67503533,154.65,154.64,0.04334841]
[1762509076366,11.64503533,154.65,154.64,0.04334841]
[1762509077073,1.97,154.6,154.54,2.96]
[1762509077272,18.75971633,154.65,154.54,2.96]
[1762509077273,1.97,154.58,154.54,2.96]
[1762509077773,5.8258,154.57,154.54,2.96]
[1762509077975,5.87052362,154.57,154.54,3.00362023]
[1762509078280,5.8262,154.56,154.54,3.00362023]
[1762509078471,5.8262,154.56,154.54,0.04362023]
[1762509078667,1.97,154.55,154.54,0.04362023]
[1762509079071,5.8262,154.56,154.54,0.04362023]
[1762509079280,7.7962,154.56,154.54,0.04362023]
[1762509079479,0.04472362,154.57,154.54,3.00362023]
[1762509080072,2.01472362,154.57,154.54,0.04362023]
[1762509080981,0.04472362,154.57,154.54,3.00362023]
[1762509081172,0.04472362,154.57,154.54,0.04362023]
[1762509081668,0.04472362,154.57,154.54,3.00362023]
[1762509082074,0.04472362,154.57,154.54,4.30362023]
[1762509082273,0.04472362,154.57,154.55,2.96]
[1762509083375,0.04472362,154.57,154.56,2.96]
[1762509083678,4.75314999,154.62,154.56,2.96]
[1762509083679,1.97,154.63,154.56,7.50921279]
[1762509083879,7.123,154.65,154.56,2.96]
[1762509084082,9.093,154.65,154.56,2.96]
[1762509084477,1.97,154.63,154.59,0.04768538]
[1762509084679,1.97,154.61,154.59,0.04768538]
[1762509086478,7.7943,154.61,154.59,0.04768538]
[1762509086684,1.97,154.6,154.59,0.04768538]
[1762509091576,1.97,154.57,154.53,2.96]
[1762509091786,1.97,154.57,154.49,2.96]
[1762509091984,1.97,154.62,154.49,2.96]
[1762509092183,1.97,154.6,154.49,2.96]
[1762509092379,1.97,154.63,154.53,2.96]
[1762509092692,0.04778925,154.6,154.56,3.00709702]
[1762509094393,0.04778925,154.6,154.56,8.83299702]
[1762509094887,2.01778925,154.6,154.56,0.04709702]
[1762509095092,0.04778925,154.6,154.56,3.00709702]
[1762509096590,0.04778925,154.6,154.56,8.83309702]
[1762509096887,0.04778925,154.6,154.57,2.96]
[1762509098296,0.04778925,154.6,154.57,8.7856]
[1762509098495,0.04778925,154.6,154.58,2.96]
[1762509098990,0.04778925,154.6,154.58,8.7853]
[1762509099190,1.99778925,154.6,154.56,0.04709702]
[1762509099593,1.99778925,154.6,154.56,3.12709702]
[1762509100692,0.04778925,154.6,154.56,3.12709702]
[1762509101294,1.99778925,154.6,154.56,3.12709702]
[1762509102599,0.04778925,154.6,154.56,3.12709702]
[1762509104104,0.04778925,154.6,154.57,3.08]
[1762509104904,1.99778925,154.6,154.56,0.04709702]
[1762509106104,5.8255,154.58,154.56,0.04709702]
[1762509106305,1.95,154.57,154.56,0.04709702]
[1762509106505,1.99778925,154.6,154.56,0.04709702]
[1762509107202,7.82268925,154.6,154.56,3.15709702]
[1762509107806,7.7751,154.59,154.56,0.04709702]
[1762509108101,1.95,154.59,154.56,0.04709702]
[1762509108405,1.95,154.57,154.56,0.04709702]
[1762509111401,6.66691619,154.57,154.56,0.04709702]
[1762509113508,11.5786246,154.57,154.56,0.04709702]
[1762509113901,6.66691619,154.57,154.56,0.04709702]
[1762509114101,11.57982105,154.57,154.56,0.04709702]
[1762509114299,1.95,154.56,154.48,3.11]
[1762509115013,5.85113119,154.6,154.49,3.11]
[1762509115014,6.66877345,154.55,154.49,3.11]
[1762509115311,1.95,154.55,154.49,3.11]
[1762509115613,1.95,154.53,154.5,0.04931232]
[1762509115808,1.95,154.53,154.5,0.04205156]
[1762509116008,1.95,154.53,154.5,3.15205156]
[1762509116208,1.95,154.52,154.5,0.04205156]
[1762509117316,7.7778,154.52,154.5,0.04205156]
[1762509117617,1.95,154.5,154.38,3.11]
[1762509117814,1.95,154.45,154.38,3.11]
[1762509118710,1.95,154.43,154.35,3.11]
[1762509118907,1.99842631,154.41,154.37,0.04084966]
[1762509119113,1.99842631,154.41,154.37,0.04449716]
[1762509119304,1.99842631,154.41,154.37,3.15449716]
[1762509119902,0.04842631,154.41,154.37,3.15449716]
[1762509120407,1.95,154.49,154.4,3.11]
[1762509120606,1.95,154.52,154.4,3.11]
[1762509120814,1.95,154.5,154.4,3.11]
[1762509121112,7.7786,154.5,154.42,3.11]
[1762509121613,0.04445112,154.48,154.44,3.15974327]
[1762509121812,1.99445112,154.48,154.44,3.15974327]
[1762509122511,1.99445112,154.48,154.37,3.11]
[1762509122708,1.95,154.46,154.37,3.11]
[1762509123215,1.95,154.44,154.37,3.11]
[1762509123911,0.04726427,154.42,154.39,0.04854537]
[1762509124614,1.99726427,154.42,154.39,0.04854537]
[1762509127519,1.95,154.4,154.32,3.11]
[1762509128226,1.95,154.42,154.33,3.11]
[1762509128522,1.99600239,154.39,154.36,0.04189223]
[1762509128916,0.04600239,154.39,154.36,3.15189223]
[1762509129417,1.95,154.46,154.39,3.11]
[1762509130014,1.95,154.46,154.39,8.9425]
[1762509130411,0.04881773,154.44,154.41,0.04566096]
[1762509130820,1.99881773,154.44,154.41,0.04566096]
[1762509133224,0.04881773,154.44,154.41,3.15566096]
[1762509134019,0.04881773,154.44,154.41,4.45566096]
[1762509134317,0.04881773,154.44,154.42,3.01]
[1762509134820,0.04881773,154.44,154.42,8.8413]
[1762509135019,0.04881773,154.44,154.43,3.01]
[1762509135419,0.04881773,154.44,154.41,3.05566096]
[1762509136824,0.04881773,154.44,154.42,3.01]
[1762509137024,0.04881773,154.44,154.42,8.8413]
[1762509137527,0.04881773,154.44,154.43,3.01]
[1762509139021,10.64810859,154.54,154.47,3.01]
[1762509139229,5.8271,154.54,154.47,3.01]
[1762509139627,1.97,154.55,154.48,3.01]
[1762509139924,5.8264,154.56,154.48,3.01]
[1762509139925,2.02,154.58,154.48,3.01]
[1762509140129,0.04196932,154.53,154.51,3.01]
[1762509141132,0.04196932,154.53,154.52,3.01]
[1762509141430,0.04196932,154.53,154.5,0.04666671]
[1762509143031,2.06196932,154.53,154.5,0.04666671]
[1762509143230,2.02,154.52,154.44,3.01]
[1762509143626,4.42643877,154.53,154.4,3.01]
[1762509143938,2.02,154.47,154.36,3.01]
[1762509144128,0.04264837,154.43,154.4,0.04758168]
[1762509144329,0.04264837,154.43,154.4,3.05758168]
[1762509144928,0.04264837,154.43,154.42,3.01]
[1762509146826,2.02,154.5,154.43,8.8408]
[1762509147027,2.02,154.5,154.43,3.01]
[1762509148029,0.0472601,154.48,154.45,0.04757456]
[1762509148933,0.0472601,154.48,154.45,3.05757456]
[1762509149638,0.0472601,154.48,154.45,0.04757456]
[1762509149932,5.85113119,154.55,154.46,3.01]
[1762509149933,4.66492168,154.54,154.46,3.01]
[1762509150130,2.06,154.53,154.46,3.01]
[1762509150836,2.06,154.56,154.46,3.01]
[1762509151036,0.04912236,154.53,154.49,3.05818415]
[1762509152033,5.85113119,154.63,154.49,3.05818415]
[1762509152225,5.8249,154.6,154.53,8.8371]
[1762509152431,2.11,154.62,154.53,3.01]
[1762509152633,4.86062165,154.61,154.53,3.01]
[1762509152829,7.9342,154.62,154.54,3.01]
[1762509153029,4.86075804,154.61,154.54,3.01]
[1762509153234,0.04596346,154.6,154.56,3.0592097]
[1762509153740,0.04596346,154.6,154.56,8.8852097]
[1762509153940,0.04596346,154.6,154.57,3.01]
[1762509154438,0.04596346,154.6,154.58,3.01]
[1762509154940,0.04596346,154.6,154.57,3.01]
[1762509156835,4.85612333,154.67,154.61,3.01]
[1762509157038,5.8219,154.68,154.61,3.01]
[1762509157344,2.11,154.7,154.61,3.01]
[1762509157644,4.85324002,154.69,154.61,3.01]
[1762509157837,0.04641038,154.67,154.63,0.04357005]
[1762509158033,2.20641038,154.67,154.63,0.04357005]
[1762509158641,0.04641038,154.67,154.63,3.05357005]
[1762509158844,2.20641038,154.67,154.63,0.04357005]
[1762509159149,2.15,154.66,154.63,0.04357005]
[1762509159346,0.04641038,154.67,154.63,0.04357005]
[1762509159645,2.19641038,154.67,154.63,0.04357005]
[1762509159846,7.973,154.65,154.63,0.04357005]
[1762509160247,2.15,154.64,154.56,3.11]
[1762509161146,4.42643877,154.68,154.58,3.11]
[1762509161147,6.99263669,154.67,154.58,3.11]
[1762509161351,0.04125894,154.64,154.61,0.04341954]
[1762509162050,0.04125894,154.64,154.61,3.15341954]
[1762509162347,0.04125894,154.64,154.61,0.04341954]
[1762509162548,2.19125894,154.64,154.61,0.04341954]
[1762509163141,2.15,154.62,154.54,3.11]
[1762509164243,2.15,154.62,154.56,3.07161497]
[1762509164244,0.04172444,154.6,154.56,3.07161497]
[1762509165946,0.04172444,154.6,154.59,3.03]
[1762509166447,0.04172444,154.6,154.57,3.03]
[1762509167648,5.8213,154.69,154.61,3.03]
[1762509168245,6.97713301,154.7,154.62,3.03]
[1762509168443,2.14,154.7,154.62,3.03]
[1762509168748,2.14,154.7,154.57,4.42643877]
[1762509168749,0.04464486,154.68,154.65,3.03]
[1762509170139,0.04464486,154.68,154.65,8.8526]
[1762509170344,0.04464486,154.68,154.66,3.03]
[1762509170948,0.04464486,154.68,154.66,8.8523]
[1762509171150,0.04464486,154.68,154.67,3.03]
[1762509174556,0.04464486,154.68,154.64,3.07813421]
[1762509175551,0.04464486,154.68,154.64,8.90123421]
[1762509175754,0.04464486,154.68,154.65,3.03]
[1762509176752,0.04464486,154.68,154.65,8.8527]
[1762509176959,0.04464486,154.68,154.66,3.03]
[1762509178356,0.04464486,154.68,154.67,3.03]
[1762509181655,7.9992,154.75,154.69,8.8512]
[1762509181955,4.42643877,154.79,154.69,3.03]
[1762509182157,6.98446517,154.78,154.69,3.03]
[1762509182357,4.80446517,154.77,154.69,3.03]
[1762509182666,0.04893414,154.75,154.73,3.03]
[1762509183863,2.22893414,154.75,154.71,3.074645]
[1762509184365,0.04893414,154.75,154.71,3.074645]
[1762509184766,0.04893414,154.75,154.71,8.895045]
[1762509184962,0.04893414,154.75,154.72,3.03]
[1762509186676,0.04893414,154.75,154.74,3.03]
[1762509186972,4.80413063,154.82,154.74,3.03]
[1762509187271,2.18,154.84,154.77,8.8483]
[1762509187466,4.80213082,154.83,154.77,8.8483]
[1762509187677,7.9958,154.84,154.78,5.8178]
[1762509187882,0.04454852,154.83,154.79,3.07893155]
[1762509188179,2.22454852,154.83,154.79,3.07893155]
[1762509189681,2.22454852,154.83,154.79,0.04893155]
[1762509191180,2.18,154.81,154.79,0.04893155]
[1762509191586,5.8165,154.82,154.79,0.04893155]
[1762509192078,7.9965,154.82,154.79,0.04893155]
[1762509193179,2.18,154.82,154.79,0.04893155]
[1762509193377,0.04454852,154.83,154.79,0.04893155]
[1762509193576,2.22454852,154.83,154.79,0.04893155]
[1762509193972,2.22454852,154.83,154.79,3.07893155]
[1762509194379,2.22454852,154.83,154.79,0.04893155]
[1762509194579,2.19,154.82,154.79,0.04893155]
[1762509195185,7.00603927,154.81,154.79,0.04893155]
[1762509195386,2.19,154.81,154.79,0.04893155]
[1762509197690,5.8166,154.82,154.79,0.04893155]
[1762509197991,0.04454852,154.83,154.79,3.14893155]
[1762509198185,4.82565321,154.82,154.79,3.14893155]
[1762509198386,0.04454852,154.83,154.79,3.14893155]
[1762509198586,4.8260176,154.82,154.79,3.14893155]
[1762509198786,0.04454852,154.83,154.79,3.14893155]
[1762509199086,0.04454852,154.83,154.8,3.1]
[1762509200482,0.04454852,154.83,154.82,3.1]
[1762509202785,2.19,154.89,154.85,3.1]
[1762509202986,7.02185921,154.88,154.8,3.1]
[1762509203191,10.64655921,154.87,154.81,8.9165]
[1762509203390,4.83185921,154.86,154.82,3.1]
[1762509203584,2.19,154.86,154.78,3.1]
[1762509203790,8.04890894,154.84,154.8,0.04440103]
[1762509203992,2.19,154.83,154.8,0.04440103]
[1762509204293,8.04890894,154.84,154.8,0.04440103]
[1762509204698,8.04890894,154.84,154.8,3.14440103]
[1762509205390,0.04310894,154.84,154.8,3.14440103]
[1762509205995,2.23310894,154.84,154.8,3.14440103]
[1762509206496,8.04880894,154.84,154.8,3.14440103]
[1762509206899,2.23310894,154.84,154.8,3.14440103]
[1762509207098,2.23310894,154.84,154.8,8.96150103]
[1762509207299,2.23310894,154.84,154.8,3.14440103]
[1762509209092,2.19,154.83,154.8,3.14440103]
[1762509209595,2.19,154.81,154.7,3.1]
[1762509209792,2.19,154.79,154.7,3.1]
[1762509209987,8.0089,154.76,154.7,3.1]
[1762509210193,2.19,154.75,154.7,3.1]
[1762509210989,2.19,154.75,154.71,3.14088824]
[1762509210990,0.04800844,154.74,154.71,3.14088824]
[1762509211195,0.04087093,154.74,154.71,3.14538486]
[1762509212295,2.23087093,154.74,154.71,0.04538486]
[1762509212695,0.04087093,154.74,154.71,3.14538486]
[1762509213096,2.23087093,154.74,154.71,0.04538486]
[1762509213289,2.19,154.72,154.64,3.1]
[1762509213488,2.19,154.71,154.64,3.1]
[1762509214189,2.19,154.69,154.57,3.1]
[1762509214495,0.04403677,154.65,154.61,0.04903744]
[1762509214699,2.23403677,154.65,154.61,3.14903744]
[1762509215698,0.04403677,154.65,154.61,3.14903744]
[1762509217098,2.19,154.71,154.61,1.34903744]
[1762509217299,2.19,154.71,154.62,3.1]
[1762509218205,0.04117492,154.68,154.65,3.14231197]
[1762509218407,0.04083043,154.68,154.65,3.14636847]
[1762509219207,0.04083043,154.68,154.66,3.02]
[1762509221705,0.04083043,154.68,154.67,3.02]
[1762509222708,5.8184,154.77,154.67,3.02]
[1762509222709,8.0084,154.77,154.69,3.02]
[1762509223306,8.0084,154.77,154.69,8.8411]
[1762509223504,8.0084,154.77,154.7,3.02]
[1762509223816,0.04258621,154.75,154.71,3.06433988]
[1762509225602,0.04258621,154.75,154.74,2.99]
[1762509226209,2.19,154.8,154.71,0.04433988]
[1762509226210,5.8163,154.83,154.75,8.8089]
[1762509226404,8.0063,154.83,154.75,8.8089]
[1762509226713,8.0063,154.83,154.76,2.99]
[1762509227017,8.0063,154.83,154.68,7.5104733]
[1762509227018,2.19,154.8,154.72,2.99]
[1762509227210,2.19,154.8,154.74,0.04307854]
[1762509228012,8.0074,154.8,154.74,0.04307854]
[1762509229212,2.19,154.75,154.66,2.99]
[1762509229610,2.15,154.72,154.66,2.99]
[1762509229806,2.15,154.72,154.6,2.99]
[1762509230011,5.8215,154.69,154.61,2.99]
[1762509230216,2.15,154.7,154.61,2.99]
[1762509230411,2.19386752,154.67,154.64,0.04306122]
[1762509230618,2.15,154.66,154.64,0.04830373]
[1762509231820,0.04615282,154.67,154.64,0.04830373]
[1762509232611,2.19615282,154.67,154.64,0.04830373]
[1762509234010,0.04615282,154.67,154.64,0.04830373]
[1762509234208,2.19615282,154.67,154.64,0.04830373]
[1762509234815,0.04615282,154.67,154.64,0.04830373]
[1762509235319,0.04615282,154.67,154.64,3.03830373]
[1762509235516,2.19615282,154.67,154.64,0.04830373]
[1762509236824,2.15,154.65,154.64,0.04830373]
[1762509237326,2.15,154.64,154.58,2.99]
[1762509237524,7.9733,154.64,154.58,2.99]
[1762509238409,0.04369199,154.63,154.59,0.04193186]
[1762509238817,0.04369199,154.63,154.59,3.03193186]
[1762509239522,0.04369199,154.63,154.6,2.99]
[1762509240631,0.04369199,154.63,154.59,3.03193186]
[1762509241728,0.04369199,154.63,154.61,5.8242]
[1762509242028,0.04369199,154.63,154.59,3.03193186]
[1762509242327,2.19369199,154.63,154.59,0.04193186]
[1762509242527,2.19369199,154.63,154.59,3.03193186]
[1762509244523,2.15,154.62,154.59,0.04193186]
[1762509245326,2.15,154.6,154.59,0.04193186]
[1762509248129,2.15,154.57,154.52,5.8275]
[1762509248530,2.15,154.57,154.51,2.99]
[1762509249034,2.19184285,154.56,154.52,0.04952049]
[1762509250027,8.01814285,154.56,154.52,0.04952049]
[1762509250535,2.15,154.55,154.52,0.04952049]
[1762509250835,0.04184285,154.56,154.52,3.03952049]
[1762509251629,0.04184285,154.56,154.55,2.99]
[1762509251937,7.06532886,154.6,154.55,2.99]
[1762509252237,7.06739761,154.59,154.53,5.827]
[1762509252527,7.06739761,154.59,154.52,2.99]
[1762509252528,2.15,154.59,154.52,2.99]
[1762509252733,0.04782298,154.57,154.54,0.04474845]
[1762509253332,2.19782298,154.57,154.54,0.04474845]
[1762509253736,0.04782298,154.57,154.54,3.03474845]
[1762509255130,2.19782298,154.57,154.54,0.04474845]
[1762509257330,0.04782298,154.57,154.54,3.26474845]
[1762509257526,5.87402298,154.57,154.54,0.04474845]
[1762509257734,8.02402298,154.57,154.54,0.04474845]
[1762509258531,2.19782298,154.57,154.54,0.04474845]
[1762509260134,0.04782298,154.57,154.55,3.22]
[1762509261038,0.04782298,154.57,154.56,3.22]
[1762509261236,2.15,154.65,154.57,3.22]
[1762509261435,7.784681,154.72,154.58,3.22]
[1762509261436,4.84667749,154.67,154.58,3.22]
[1762509261738,2.15,154.66,154.61,9.0443]
[1762509262133,0.04267656,154.65,154.62,3.26078484]
[1762509262439,2.19267656,154.65,154.62,0.04078484]
[1762509263028,2.15,154.63,154.62,0.04078484]
[1762509264232,2.15,154.63,154.55,9.0463]
[1762509264233,2.15,154.61,154.55,9.0463]
[1762509264836,2.15,154.58,154.53,9.0471]
[1762509265237,0.04118026,154.57,154.54,0.04862071]
[1762509265439,8.01718026,154.57,154.54,0.04862071]
[1762509265842,0.04118026,154.57,154.55,3.22]
[1762509267046,0.04118026,154.57,154.55,9.0465]
[1762509267649,0.04118026,154.57,154.56,3.22]
[1762509270953,2.15,154.64,154.56,3.22]
[1762509271153,7.08658917,154.63,154.56,3.22]
[1762509271355,4.93658917,154.62,154.56,3.22]
[1762509271553,2.15,154.61,154.56,3.22]
[1762509271750,2.15,154.61,154.52,3.22]
[1762509271954,0.04885044,154.58,154.55,3.26337823]
[1762509272152,0.04885044,154.58,154.56,9.0462]
[1762509272557,0.04885044,154.58,154.55,0.04337823]
[1762509273145,0.04885044,154.58,154.55,3.26337823]
[1762509273856,2.19885044,154.58,154.55,0.04337823]
[1762509274252,2.19885044,154.58,154.55,3.26337823]
[1762509274560,0.04885044,154.58,154.55,9.08987823]
[1762509275159,0.04885044,154.58,154.55,3.26337823]
[1762509275370,2.19885044,154.58,154.55,3.26337823]
[1762509275662,2.19885044,154.58,154.55,0.04337823]
[1762509276350,4.96104368,154.57,154.55,0.04337823]
[1762509276560,2.19885044,154.58,154.55,0.04337823]
[1762509276853,4.96104427,154.57,154.55,0.04337823]
[1762509277052,8.02445044,154.58,154.55,0.04337823]
[1762509277254,4.96121908,154.57,154.55,0.04337823]
[1762509277454,8.02445044,154.58,154.55,0.04337823]
[1762509277650,12.93806832,154.57,154.55,0.04337823]
[1762509277855,7.9759,154.57,154.55,0.04337823]
[1762509278055,2.15,154.57,154.55,0.04337823]
[1762509282160,2.15,154.56,154.55,0.04337823]
[1762509282363,7.12090911,154.56,154.55,0.04337823]
[1762509284164,4.97090911,154.56,154.55,3.18337823]
[1762509284361,0.04885044,154.58,154.56,3.14]
[1762509284562,0.04885044,154.58,154.57,3.14]
[1762509285561,0.04885044,154.58,154.55,10.89635367]
[1762509285767,0.04885044,154.58,154.56,3.14]
[1762509285963,2.18885044,154.58,154.55,0.04337823]
[1762509286168,7.11682955,154.57,154.55,0.04337823]
[1762509286479,2.14,154.57,154.55,0.04337823]
[1762509291474,7.966,154.57,154.55,0.04337823]
[1762509291675,2.14,154.56,154.55,0.04337823]
[1762509292578,7.12513484,154.56,154.55,0.04337823]
[1762509293572,4.98513484,154.56,154.55,3.18337823]
[1762509293867,0.04885044,154.58,154.55,3.18337823]
[1762509294170,4.98550692,154.57,154.55,3.18337823]
[1762509294370,0.04885044,154.58,154.55,3.18337823]
[1762509295181,0.04885044,154.58,154.55,9.00987823]
[1762509295375,0.04885044,154.58,154.56,3.14]
[1762509295977,2.18885044,154.58,154.55,0.04337823]
[1762509296169,2.18885044,154.58,154.55,3.18337823]
[1762509296483,0.04885044,154.58,154.55,9.00977823]
[1762509296676,0.04885044,154.58,154.56,3.14]
[1762509297273,0.04885044,154.58,154.56,8.9661]
[1762509297474,0.04885044,154.58,154.57,3.14]
[1762509297877,7.17476423,154.58,154.55,0.04337823]
[1762509298177,4.98591379,154.57,154.55,0.04337823]
[1762509298371,2.18885044,154.58,154.55,0.04337823]
[1762509298567,2.14,154.56,154.55,0.04337823]
[1762509298973,4.9862934,154.56,154.55,0.04337823]
[1762509299379,2.18885044,154.58,154.55,0.04337823]
[1762509299580,4.98651847,154.57,154.55,0.04337823]
[1762509299780,2.18885044,154.58,154.55,0.04337823]
[1762509299971,4.98651847,154.57,154.55,0.04337823]
[1762509300175,2.18885044,154.58,154.55,0.04337823]
[1762509300376,4.98668633,154.57,154.55,0.04337823]
[1762509300680,2.18885044,154.58,154.55,0.04337823]
[1762509300885,4.97363868,154.57,154.55,0.04337823]
[1762509301086,2.18885044,154.58,154.55,3.18337823]
[1762509301376,4.97370666,154.57,154.55,3.18337823]
[1762509301581,2.18885044,154.58,154.55,0.04337823]
[1762509301784,2.18885044,154.58,154.55,9.00987823]
[1762509301785,4.97387201,154.57,154.55,9.00987823]
[1762509301981,0.04885044,154.58,154.55,3.18337823]
[1762509302981,0.04885044,154.58,154.57,3.14]
[1762509304793,2.18885044,154.58,154.55,0.04337823]
[1762509305275,0.04885044,154.58,154.55,9.00987823]
[1762509305480,0.04885044,154.58,154.55,3.18337823]
[1762509306988,2.18885044,154.58,154.55,3.18337823]
[1762509307582,4.97156576,154.57,154.55,3.18337823]
[1762509307785,2.18885044,154.58,154.55,3.18337823]
[1762509308089,0.04885044,154.58,154.56,3.14]
[1762509308481,0.04885044,154.58,154.55,3.18337823]
[1762509309289,2.18885044,154.58,154.55,3.18337823]
[1762509309682,0.04885044,154.58,154.56,3.14]
[1762509310384,0.04885044,154.58,154.56,8.9659]
[1762509310683,0.04885044,154.58,154.57,3.14]
[1762509310883,0.04885044,154.58,154.55,3.18337823]
[1762509311483,0.04885044,154.58,154.55,9.00977823]
[1762509311878,0.04885044,154.58,154.56,3.14]
[1762509312085,0.04885044,154.58,154.56,8.9661]
[1762509312394,2.18885044,154.58,154.55,0.04337823]
[1762509312889,2.18885044,154.58,154.55,3.18337823]
[1762509313289,0.04885044,154.58,154.55,3.18337823]
[1762509313678,2.18885044,154.58,154.55,3.18337823]
[1762509314389,8.01435044,154.58,154.55,3.18337823]
[1762509314594,8.01435044,154.58,154.55,0.04337823]
[1762509315289,2.18885044,154.58,154.55,3.11337823]
[1762509315479,2.18885044,154.58,154.55,0.04337823]
[1762509316090,8.01445044,154.58,154.55,0.04337823]
[1762509316786,7.9859,154.57,154.55,0.04337823]
[1762509317786,2.16,154.56,154.55,0.04337823]
[1762509319086,2.20885044,154.58,154.55,0.04337823]
[1762509320794,2.20885044,154.58,154.55,3.11337823]
[1762509322389,0.04885044,154.58,154.55,3.11337823]
[1762509323690,0.04885044,154.58,154.57,3.07]
[1762509324691,2.16,154.64,154.6,3.07]
[1762509324891,6.96910279,154.63,154.6,3.07]
[1762509325093,4.80910279,154.62,154.6,3.07]
[1762509325294,2.16,154.62,154.55,3.07]
[1762509325697,5.8234,154.64,154.58,8.8954]
[1762509325897,4.80746877,154.63,154.59,3.11547865]
[1762509326093,4.80746877,154.62,154.59,3.11547865]
[1762509326398,2.16,154.65,154.59,3.11547865]
[1762509326598,2.16,154.63,154.59,3.11547865]
[1762509326903,2.16,154.66,154.6,3.07]
[1762509327090,6.96306617,154.65,154.61,3.11941605]
[1762509327395,4.80306617,154.64,154.61,3.11878979]
[1762509327590,2.16,154.67,154.63,3.07]
[1762509327791,4.80129694,154.66,154.63,3.11188436]
[1762509327992,4.80129694,154.65,154.63,3.11188436]
[1762509328186,4.80129694,154.64,154.63,3.11188436]
[1762509328393,2.16,154.66,154.63,0.04188436]
[1762509328593,4.79926352,154.65,154.63,0.04188436]
[1762509328793,2.16,154.66,154.63,0.04188436]
[1762509328997,4.79911222,154.65,154.63,3.11188436]
[1762509329193,4.79911222,154.64,154.63,3.11188436]
[1762509329591,4.79911222,154.64,154.63,0.04188436]
[1762509329987,2.16,154.66,154.63,0.04188436]
[1762509330191,6.95763564,154.65,154.63,0.04188436]
[1762509330391,7.9822,154.67,154.63,0.04188436]
[1762509330591,4.80693039,154.66,154.63,0.04188436]
[1762509330799,4.80693039,154.65,154.63,0.04188436]
[1762509330995,2.16,154.67,154.63,0.04188436]
[1762509331195,6.96741991,154.66,154.63,0.04188436]
[1762509331500,2.16,154.64,154.63,0.04188436]
[1762509333194,2.16,154.65,154.63,0.04188436]
[1762509335195,5.84253038,154.71,154.63,0.04188436]
[1762509335397,2.16,154.67,154.63,3.11188436]
[1762509335601,6.96217521,154.66,154.63,3.11188436]
[1762509335902,2.16,154.64,154.63,0.04188436]
[1762509336099,6.96160111,154.64,154.63,0.04188436]